bitfinex/quotes_ETHUSD_20250403
["timestamp","ask_amount","ask_price","bid_price","bid_amount"]
[1743691380454,6.43306,1767.2,1767.1,0.05]
[1743691380673,0.7744,1767.2,1767.1,0.05]
[1743691380901,6.43306,1767.2,1767.1,0.05]
[1743691381481,9.43306,1767.2,1767.1,0.05]
[1743691381790,11.32908294,1767.2,1767.1,0.05]
[1743691382099,15.35823535,1767.2,1767.1,0.05]
[1743691382301,0.8097,1766.8,1766.2,6.11]
[1743691382455,3.44385241,1766.5,1766.1,0.8427]
[1743691382660,3.0,1766.6,1766.2,5.66184]
[1743691382897,10.01985241,1766.7,1766.4,5.66121]
[1743691383068,6.576,1766.7,1766.4,5.66121]
[1743691383273,7.96264274,1767.4,1766.8,5.65964]
[1743691383600,8.65848,1767.3,1766.9,6.42322]
[1743691383966,3.0,1767.3,1767.0,5.65923]
[1743691384205,9.81605406,1767.3,1766.9,6.42321]
[1743691384387,9.81605406,1767.3,1766.9,0.7637]
[1743691384388,10.24603387,1767.3,1766.9,0.7637]
[1743691384589,4.58758387,1767.3,1766.9,6.42332]
[1743691384903,15.90461387,1767.3,1766.9,0.7637]
[1743691385268,10.24603387,1767.3,1766.9,0.7637]
[1743691385503,15.90458387,1767.3,1766.9,0.7637]
[1743691385693,10.24603387,1767.3,1766.9,0.7637]
[1743691385863,4.58758387,1767.3,1766.9,12.08273]
[1743691386059,6.577,1767.4,1766.9,6.8737]
[1743691386265,6.577,1767.4,1767.0,5.65915]
[1743691386488,12.23513,1767.4,1767.0,5.65915]
[1743691386892,12.23513,1767.4,1767.0,5.65913]
[1743691387305,12.23513,1767.4,1766.9,12.53322]
[1743691387306,5.65835,1767.3,1766.9,12.53322]
[1743691387479,1.789348,1767.3,1766.9,6.8737]
[1743691387805,6.577,1767.4,1767.0,11.31819]
[1743691388018,6.577,1767.4,1767.0,5.65905]
[1743691388497,6.577,1767.4,1767.1,5.65898]
[1743691388862,6.577,1767.4,1767.0,5.65927]
[1743691389065,6.577,1767.4,1766.9,6.8737]
[1743691389260,6.577,1767.4,1766.9,6.11]
[1743691389261,6.45593,1767.2,1766.9,6.11]
[1743691389909,5.65909,1767.1,1766.9,6.11]
[1743691390285,6.45593,1767.2,1766.9,6.11]
[1743691390482,5.65912,1767.1,1766.9,6.11]
[1743691390702,5.65912,1767.1,1766.5,6.43611]
[1743691390703,3.55,1767.1,1766.5,6.43611]
[1743691391006,3.55,1767.1,1766.5,12.0969]
[1743691391007,6.01445,1767.0,1766.5,12.0969]
[1743691391190,6.574,1766.9,1766.6,5.66058]
[1743691391399,6.574,1766.9,1766.5,0.7752]
[1743691392067,5.66052,1766.7,1766.2,6.9098]
[1743691392271,5.66061,1766.6,1766.2,6.9098]
[1743691392674,5.66032,1766.7,1766.2,6.9098]
[1743691392915,12.534364,1766.7,1766.2,6.9098]
[1743691393120,6.873914,1766.7,1766.2,12.57154]
[1743691393304,6.873914,1766.7,1766.2,6.9098]
[1743691393502,5.66133,1766.4,1766.2,6.11]
[1743691393679,12.23433,1766.4,1766.2,6.11]
[1743691394675,6.573,1766.4,1766.2,6.11]
[1743691395091,13.446994,1766.7,1766.3,0.7733]
[1743691395309,4.3446994,1766.6,1766.3,0.7733]
[1743691395513,5.66125,1766.4,1766.2,6.11]
[1743691395969,5.66155,1766.3,1766.2,6.11]
[1743691396174,5.66187,1766.2,1766.1,0.05]
[1743691396417,13.367212,1766.2,1766.1,0.05]
[1743691397213,17.1830992,1766.2,1766.1,0.05]
[1743691397372,13.79401227,1766.2,1766.1,0.05]
[1743691398201,16.79401227,1766.2,1766.1,0.05]
[1743691398700,21.94959947,1766.2,1766.1,0.05]
[1743691399931,8.66219,1766.1,1765.2,6.9024]
[1743691400137,5.66411,1765.6,1765.2,6.9024]
[1743691400304,6.572,1765.6,1765.2,12.56746]
[1743691400487,6.572,1765.6,1765.2,12.56737]
[1743691400889,12.2359,1765.6,1765.2,0.7924]
[1743691401104,13.8386,1765.6,1765.2,0.7924]
[1743691401357,5.66448,1765.4,1765.2,0.7924]
[1743691401625,5.66413,1765.5,1765.1,0.05]
[1743691402001,13.83855,1765.6,1765.1,11.38063]
[1743691402201,13.83855,1765.6,1765.1,5.71524]
[1743691402401,13.83855,1765.6,1765.1,11.38053]
[1743691402707,13.83855,1765.6,1765.1,5.71524]
[1743691402900,12.23585,1765.6,1765.1,5.71524]
[1743691403228,12.23588,1765.6,1765.2,5.66492]
[1743691403394,12.23588,1765.6,1765.1,5.71523]
[1743691403730,5.66423,1765.5,1765.1,0.05]
[1743691404036,12.23585,1765.6,1765.1,5.7154]
[1743691404336,14.44785101,1765.6,1765.2,5.66505]
[1743691404687,3.0,1765.7,1765.4,0.7953]
[1743691404916,3.0,1765.7,1765.4,6.45973]
[1743691405162,3.0,1765.7,1765.4,0.7953]
[1743691405311,12.23622,1765.8,1765.5,5.66398]
[1743691405312,6.573,1765.8,1765.5,5.66398]
[1743691405791,6.573,1765.8,1765.4,12.56973]
[1743691405999,6.573,1765.8,1765.5,5.6641]
[1743691406804,6.573,1765.8,1765.5,5.66401]
[1743691407002,6.573,1765.8,1765.5,5.664]
[1743691407323,6.573,1765.8,1765.4,12.56972]
[1743691407522,12.89357,1765.8,1765.4,12.56972]
[1743691407729,6.573,1765.8,1765.4,6.9053]
[1743691407903,13.06196,1766.3,1765.8,5.66295]
[1743691408100,5.66273,1766.0,1765.8,6.11]
[1743691408735,11.32461,1766.1,1765.8,6.11]
[1743691408930,4.81463655,1766.1,1765.8,6.11]
[1743691409132,10.47685655,1766.1,1765.8,6.11]
[1743691409339,0.8284,1766.3,1765.9,0.7516]
[1743691409642,6.572,1766.3,1765.9,6.41411]
[1743691409851,6.572,1766.4,1766.1,5.66219]
[1743691410051,12.23335,1766.4,1766.0,6.11]
[1743691410249,12.23335,1766.4,1766.0,11.77251]
[1743691410454,1.223335,1766.3,1766.0,6.11]
[1743691410750,5.662,1766.2,1766.0,6.11]
[1743691411246,13.348045,1766.3,1766.0,6.11]
[1743691411656,13.348055,1766.3,1766.0,6.11]
[1743691411856,13.348035,1766.3,1766.0,6.11]
[1743691412018,6.9967635,1766.2,1766.0,6.11]
[1743691412212,1.3348035,1766.2,1766.0,6.11]
[1743691412918,1.3348035,1766.2,1766.0,6.8785]
[1743691413114,1.223335,1766.3,1766.0,6.8785]
[1743691413315,1.223335,1766.3,1766.0,12.541]
[1743691413515,6.57,1766.3,1766.0,12.541]
[1743691413752,6.57,1766.3,1766.0,6.8785]
[1743691413967,6.57,1766.3,1766.1,5.6621]
[1743691414276,6.57,1766.3,1766.0,6.8785]
[1743691414277,12.23164,1766.3,1766.0,6.8785]
[1743691414474,6.57,1766.3,1766.0,6.8785]
[1743691414655,6.31912,1766.2,1766.0,6.11]
[1743691414862,0.657,1766.2,1766.0,6.11]
[1743691415173,5.664,1765.6,1765.4,6.11]
[1743691415332,6.569,1765.5,1765.1,6.9661]
[1743691415678,12.23338,1765.5,1765.1,6.9661]
[1743691415840,12.2333,1765.5,1765.1,6.9661]
[1743691416169,13.45663,1765.5,1765.1,0.8561]
[1743691416337,5.66452,1765.4,1765.1,0.8561]
[1743691416552,7.79233,1765.5,1765.1,0.05]
[1743691416783,5.66508,1765.2,1765.1,0.05]
[1743691417392,11.32987,1765.3,1765.1,0.05]
[1743691417586,5.66508,1765.2,1765.1,0.05]
[1743691418755,8.66508,1765.2,1765.1,0.05]
[1743691419492,3.0,1765.2,1765.1,0.05]
[1743691420699,3.0,1765.4,1765.1,0.8606]
[1743691420870,6.99716498,1765.5,1765.1,6.9706]
[1743691421197,6.99716498,1765.5,1765.1,18.30113]
[1743691421507,6.99716498,1765.5,1765.3,5.6646]
[1743691421508,6.569,1765.5,1765.3,5.6646]
[1743691421867,6.569,1765.5,1765.2,11.32997]
[1743691422212,6.569,1765.5,1765.3,5.66471]
[1743691422707,6.569,1765.5,1765.2,5.66492]
[1743691422864,7.2259,1765.5,1765.1,6.9706]
[1743691423067,7.2259,1765.5,1765.2,5.66495]
[1743691423269,6.569,1765.5,1765.3,5.66473]
[1743691423464,6.569,1765.5,1765.2,5.66495]
[1743691423778,6.569,1765.5,1765.2,11.32987]
[1743691424014,6.569,1765.5,1765.3,5.66465]
[1743691424434,6.569,1765.5,1765.3,11.32923]
[1743691424611,6.569,1765.5,1765.4,5.66443]
[1743691424954,0.7612,1765.9,1765.4,0.7897]
[1743691425135,0.657,1766.2,1765.5,5.66399]
[1743691425136,6.567,1765.7,1765.5,5.66399]
[1743691425334,6.567,1765.8,1765.5,11.328]
[1743691425507,6.567,1765.8,1765.6,5.66376]
[1743691425848,4.3717555,1766.4,1765.8,5.66303]
[1743691425849,13.01018,1766.4,1765.8,5.66303]
[1743691426049,18.61722982,1766.4,1765.9,6.11]
[1743691426253,5.6625,1766.1,1765.9,6.11]
[1743691426423,5.66307,1765.9,1765.5,0.774]
[1743691426618,6.567,1765.8,1765.5,0.774]
[1743691427740,12.23017,1765.8,1765.4,6.11]
[1743691428062,8.39776951,1765.8,1765.4,6.11]
[1743691428350,12.23034,1765.8,1765.4,6.11]
[1743691429152,6.567,1765.8,1765.4,6.11]
[1743691429456,9.98049514,1765.9,1765.5,5.66394]
[1743691429749,9.98049514,1765.9,1765.6,6.11]
[1743691429956,9.566,1765.9,1765.6,6.9252]
[1743691430136,9.566,1765.9,1765.6,12.58899]
[1743691430337,9.566,1765.9,1765.6,6.9252]
[1743691430554,10.60017,1765.9,1765.6,6.9252]
[1743691430924,3.0,1765.9,1765.6,12.58884]
[1743691431321,3.0,1765.9,1765.6,6.9252]
[1743691432036,3.0,1765.9,1765.7,5.66345]
[1743691432237,6.564,1766.1,1765.8,11.3261]
[1743691432459,6.564,1766.1,1765.8,5.663]
[1743691432751,7.5204,1766.1,1765.7,11.77331]
[1743691433056,0.9564,1766.1,1765.7,11.77331]
[1743691433259,12.22619,1766.1,1765.7,6.11]
[1743691433421,6.48755,1765.9,1765.7,6.11]
[1743691433629,5.66315,1765.8,1765.7,6.11]
[1743691434030,5.66315,1765.8,1765.4,6.11]
[1743691434031,3.44999168,1765.8,1765.4,6.11]
[1743691434364,12.22773,1765.7,1765.4,6.11]
[1743691434564,7.69174783,1765.7,1765.4,11.77442]
[1743691434864,6.564,1765.7,1765.6,5.66379]
[1743691435019,3.0,1765.8,1765.6,5.66379]
[1743691435619,3.0,1765.8,1765.5,6.48185]
[1743691436364,6.45898,1766.3,1765.9,0.7722]
[1743691436574,3.645898,1766.2,1765.9,6.8822]
[1743691436776,7.3594,1766.3,1765.9,18.20762]
[1743691436942,7.3594,1766.3,1765.9,12.54491]
[1743691437277,5.66188,1766.2,1765.9,6.11]
[1743691437478,5.66251,1766.0,1765.9,6.11]
[1743691437636,8.66251,1766.0,1765.9,6.11]
[1743691437837,10.177634,1766.0,1765.9,6.11]
[1743691438270,4.515124,1766.0,1765.9,6.11]
[1743691438577,3.0,1765.9,1765.7,6.11]
[1743691438776,5.66411,1765.5,1765.2,6.11]
[1743691439106,12.2267,1765.4,1764.9,7.33010016]
[1743691439312,14.094993,1765.4,1764.9,7.33010016]
[1743691439464,14.094993,1765.4,1764.9,6.9153]
[1743691439664,8.430293,1765.4,1764.9,12.58111]
[1743691439907,8.86280478,1765.4,1764.9,12.58111]
[1743691440071,14.52735478,1765.4,1764.9,6.9153]
[1743691440270,20.19201478,1765.4,1764.9,6.9153]
[1743691440589,8.86280478,1765.4,1764.9,12.58133]
[1743691440778,8.86280478,1765.4,1764.9,6.9153]
[1743691440968,6.99451178,1765.4,1764.9,12.58116]
[1743691441167,5.6649,1765.3,1764.9,6.9153]
[1743691441692,12.65898178,1765.4,1764.9,6.9153]
[1743691441926,12.65898178,1765.4,1764.9,12.58121]
[1743691442061,12.65898178,1765.4,1764.9,6.9153]
[1743691442903,6.99451178,1765.4,1764.9,12.58131]
[1743691443093,6.99451178,1765.4,1765.1,5.71523]
[1743691443292,6.99451178,1765.4,1765.1,6.29241865]
[1743691443475,6.562,1765.4,1765.3,0.7941]
[1743691443807,6.562,1765.4,1765.3,6.9041]
[1743691444595,6.562,1765.4,1765.3,12.56885]
[1743691445165,6.56,1765.7,1765.5,5.66404]
[1743691445409,6.56,1765.7,1765.6,6.11]
[1743691445796,0.41898942,1766.1,1765.8,5.663]
[1743691446003,1.17088942,1766.1,1765.9,6.11]
[1743691446307,6.83321942,1766.1,1765.9,6.11]
[1743691446480,5.66251,1766.0,1765.9,6.11]
[1743691446677,6.870184,1766.0,1765.9,6.11]
[1743691447511,1.207674,1766.0,1765.9,6.11]
[1743691448015,7.766674,1766.0,1765.9,6.11]
[1743691448508,13.429184,1766.0,1765.9,6.11]
[1743691449287,6.49356,1765.8,1765.5,6.11]
[1743691449623,0.649356,1765.7,1765.5,6.11]
[1743691449825,0.8303,1765.8,1765.5,6.11]
[1743691450383,6.559,1766.0,1765.6,5.66375]
[1743691450585,12.22162,1766.0,1765.5,11.774]
[1743691450818,5.66285,1765.9,1765.5,6.11]
[1743691451088,6.229555,1765.8,1765.5,6.11]
[1743691451515,6.229555,1765.8,1765.4,0.8093]
[1743691451516,7.011955,1765.8,1765.4,6.9193]
[1743691451733,1.348785,1765.8,1765.4,6.9193]
[1743691451942,1.348785,1765.8,1765.4,6.11]
[1743691452149,7.011945,1765.8,1765.4,6.11]
[1743691452309,0.7011945,1765.7,1765.4,11.7744]
[1743691452505,6.557,1765.6,1765.4,11.7744]
[1743691453652,6.557,1765.6,1765.4,17.43868]
[1743691454054,3.0,1766.0,1765.6,5.66353]
[1743691454253,6.556,1765.8,1765.6,11.32716]
[1743691454659,3.0,1766.0,1765.6,5.66353]
[1743691454874,6.856,1765.9,1765.7,5.66347]
[1743691455066,6.556,1765.9,1765.7,11.32684]
[1743691455219,0.42285597,1766.1,1765.8,6.44061]
[1743691455420,5.66239,1766.1,1765.9,6.11]
[1743691455620,0.566239,1766.0,1765.7,6.11]
[1743691456039,12.14623,1766.2,1765.7,11.77334]
[1743691456330,5.66219,1766.1,1765.7,6.11]
[1743691456663,5.66251,1766.0,1765.7,6.11]
[1743691456827,6.555,1765.9,1765.7,6.11]
[1743691457028,0.7916,1765.8,1765.7,6.11]
[1743691457246,2.092552,1765.8,1765.7,6.11]
[1743691457457,7.755702,1765.8,1765.7,6.11]
[1743691457619,8.305702,1765.8,1765.7,6.11]
[1743691458119,15.12694584,1765.8,1765.2,6.9048]
[1743691458357,6.45564,1765.5,1765.2,6.11]
[1743691458529,12.21963,1765.4,1765.2,6.11]
[1743691458734,3.0,1765.3,1765.2,6.11]
[1743691460185,8.66508,1765.2,1765.1,0.05]
[1743691460471,9.45908,1765.2,1765.1,0.05]
[1743691460639,10.971477,1765.2,1765.1,0.05]
[1743691461142,15.77470336,1765.2,1765.1,0.05]
[1743691461369,15.76260336,1765.2,1765.1,0.05]
[1743691461573,5.66721,1764.6,1764.4,6.11]
[1743691461783,7.120721,1764.5,1764.2,6.11]
[1743691461989,6.554,1764.5,1764.2,6.11]
[1743691462298,5.66829,1764.2,1764.1,0.05]
[1743691462591,0.55,1764.2,1764.1,0.05]
[1743691462792,3.8161,1764.4,1764.1,0.05]
[1743691463090,6.21717,1764.6,1764.1,0.05]
[1743691463091,6.554,1764.2,1764.1,0.05]
[1743691463259,6.554,1764.4,1764.2,11.77811]
[1743691463772,6.554,1764.4,1764.3,11.77797]
[1743691464182,6.555,1764.7,1764.3,6.9259]
[1743691464353,6.555,1764.7,1764.4,11.77736]
[1743691464552,6.97194744,1764.7,1764.4,6.11]
[1743691465099,6.97194744,1764.7,1764.4,11.77764]
[1743691465403,6.97194744,1764.7,1764.4,17.44517]
[1743691465549,6.555,1764.7,1764.6,5.667]
[1743691465753,0.42786218,1765.1,1764.9,5.66587]
[1743691465985,1.512397,1765.2,1765.0,6.11]
[1743691466188,6.555,1765.3,1765.0,6.11]
[1743691467561,6.555,1765.3,1765.0,17.44142]
[1743691467760,6.555,1765.3,1765.1,5.66539]
[1743691467997,6.555,1765.3,1765.1,6.11]
[1743691468792,6.9807369,1765.3,1765.1,6.11]
[1743691468997,0.7765,1765.6,1765.2,11.77508]
[1743691469209,6.554,1765.5,1765.2,11.77508]
[1743691469408,6.554,1765.5,1765.2,11.77504]
[1743691469777,6.554,1765.5,1765.2,11.77494]
[1743691470190,6.554,1765.5,1765.3,11.32928]
[1743691470423,40.794,1765.8,1765.5,5.66389]
[1743691470725,6.553,1765.7,1765.6,5.66377]
[1743691471013,6.553,1765.7,1765.6,11.77377]
[1743691471182,0.7952,1766.2,1765.6,7.853766]
[1743691471389,6.553,1766.1,1765.8,5.66303]
[1743691471589,6.553,1766.1,1765.9,11.77281]
[1743691471788,6.553,1766.1,1765.9,11.77271]
[1743691472216,0.7572,1766.4,1766.1,5.66204]
[1743691472416,6.553,1766.2,1766.1,5.66204]
[1743691472715,6.553,1766.2,1766.1,5.66203]
[1743691473283,0.8131,1766.6,1766.3,5.66139]
[1743691473501,6.551,1766.5,1766.3,5.66139]
[1743691473883,0.41795836,1766.7,1766.4,11.32235]
[1743691474079,6.551,1766.5,1766.4,5.66112]
[1743691474281,4.20260584,1766.7,1766.4,5.66112]
[1743691474505,6.551,1766.6,1766.4,5.66105]
[1743691474726,40.795,1766.8,1766.6,5.66046]
[1743691475014,6.551,1766.7,1766.6,11.77046]
[1743691476183,40.795,1766.8,1766.7,5.66027]
[1743691476411,47.344,1766.8,1766.7,5.66027]
[1743691476742,0.05,1766.9,1766.8,5.65995]
[1743691476924,0.05,1766.9,1766.8,12.52215]
[1743691477414,0.05,1766.9,1766.8,15.52215]
[1743691477825,3.87124384,1767.9,1767.0,5.6593]
[1743691477986,6.548,1767.7,1767.6,5.65738]
[1743691478388,6.548,1767.7,1767.5,5.65754]
[1743691478723,1.24771556,1767.9,1767.5,5.65754]
[1743691478928,6.548,1767.8,1767.5,5.65754]
[1743691479085,0.05,1767.9,1767.3,3.0]
[1743691479289,0.05,1767.9,1767.8,5.65674]
[1743691479487,0.05,1767.9,1767.8,11.76674]
[1743691479923,0.05,1767.9,1767.8,14.76674]
[1743691480227,0.05,1767.9,1767.8,6.11]
[1743691480863,0.05,1767.9,1767.3,12.52362]
[1743691480864,10.72224115,1767.9,1767.3,12.52362]
[1743691481012,7.61822412,1767.8,1767.3,6.11]
[1743691481210,3.82124384,1767.7,1767.3,6.11]
[1743691481547,5.65741,1767.6,1767.3,6.11]
[1743691481716,5.65772,1767.5,1767.3,6.11]
[1743691482040,6.545,1767.4,1767.3,6.11]
[1743691482613,7.3121,1767.4,1767.3,6.11]
[1743691482812,12.97012,1767.4,1767.3,6.11]
[1743691483010,15.21505138,1767.4,1767.0,6.11]
[1743691483644,15.62932035,1767.4,1767.0,6.11]
[1743691483821,21.28762035,1767.4,1767.0,6.11]
[1743691484021,9.47964384,1767.3,1767.0,6.11]
[1743691484462,5.65873,1767.2,1766.8,6.11]
[1743691484752,21.28776035,1767.4,1766.8,12.54867902]
[1743691484928,15.62952035,1767.4,1766.8,12.54867902]
[1743691485319,5.65835,1767.3,1766.8,6.88887902]
[1743691485523,15.62952035,1767.4,1766.8,12.54861902]
[1743691485830,5.6588,1767.2,1766.8,6.88887902]
[1743691487218,5.65907,1767.1,1766.8,6.88887902]
[1743691487552,6.541,1767.0,1766.8,6.88887902]
[1743691488350,6.541,1767.0,1766.9,6.11]
[1743691488849,6.541,1767.0,1766.7,6.11]
[1743691489240,7.761013,1767.0,1766.7,6.11]
[1743691489444,11.31953,1766.9,1766.5,6.9107]
[1743691489650,5.6601,1766.8,1766.5,6.11]
[1743691490165,5.65968,1766.9,1766.5,6.11]
[1743691490533,14.190253,1767.0,1766.5,6.11]
[1743691490728,14.190253,1767.0,1766.5,11.77091]
[1743691490935,19.849823,1767.0,1766.5,6.11]
[1743691491136,14.190253,1767.0,1766.5,11.77077]
[1743691491334,19.849783,1767.0,1766.5,11.77077]
[1743691491805,6.86476297,1766.9,1766.5,6.11]
[1743691491937,12.52457297,1766.9,1766.5,6.11]
[1743691492134,5.66057,1766.7,1766.5,6.11]
[1743691492347,12.20059,1766.6,1766.5,6.11]
[1743691492548,6.54,1766.6,1766.5,6.11]
[1743691492946,6.54,1766.6,1766.5,12.56661]
[1743691493157,7.649283,1767.0,1766.5,14.389385]
[1743691493373,6.539,1766.8,1766.6,5.66039]
[1743691493576,4.58954384,1767.3,1766.6,3.0]
[1743691493577,6.42668,1767.3,1766.6,3.0]
[1743691493785,6.539,1767.1,1766.7,11.77008]
[1743691494385,6.43771,1767.5,1766.9,6.44241]
[1743691494557,6.539,1767.4,1767.0,5.6592]
[1743691494758,6.539,1767.4,1767.1,11.76897]
[1743691494977,6.539,1767.4,1767.1,6.11]
[1743691495352,6.539,1767.4,1767.1,11.76897]
[1743691495948,6.539,1767.4,1767.1,11.76884]
[1743691496151,12.19706,1767.4,1767.1,6.11]
[1743691496388,6.539,1767.4,1767.1,6.11]
[1743691496589,13.75311192,1767.4,1767.1,6.11]
[1743691496798,8.09497192,1767.4,1767.1,6.11]
[1743691496953,6.96240147,1767.4,1767.1,6.11]
[1743691497479,11.31707,1767.3,1767.1,6.11]
[1743691497682,5.65852,1767.3,1767.1,6.11]
[1743691497991,12.62048147,1767.4,1767.1,6.11]
[1743691498154,5.65852,1767.3,1767.1,6.11]
[1743691498552,5.65866,1767.2,1767.1,6.11]
[1743691499394,5.65898,1767.1,1767.0,6.11]
[1743691500298,5.65876,1767.2,1767.0,6.11]
[1743691500598,5.65898,1767.1,1767.0,6.11]
[1743691500900,5.65876,1767.2,1767.0,6.11]
[1743691501395,5.65898,1767.1,1767.0,6.11]
[1743691501600,11.31766,1767.2,1767.0,6.11]
[1743691501897,6.96240147,1767.4,1767.0,6.9213]
[1743691502195,0.42340147,1767.4,1767.0,7.61343]
[1743691502379,5.6574,1767.6,1767.1,11.76898]
[1743691502578,6.536,1767.6,1767.3,0.8326]
[1743691502782,6.536,1767.6,1767.1,6.9426]
[1743691504329,6.535,1767.2,1767.1,6.11]
[1743691504511,6.535,1767.2,1767.1,11.76898]
[1743691504712,1.89942412,1767.8,1767.1,11.76898]
[1743691504713,6.535,1767.5,1767.3,0.765]
[1743691505028,12.1927,1767.5,1767.4,6.11]
[1743691505309,13.977721,1767.5,1767.4,6.11]
[1743691505512,18.34896484,1767.5,1767.4,6.11]
[1743691505718,19.13276484,1767.5,1767.4,6.11]
[1743691506613,19.13176484,1767.5,1767.4,6.11]
[1743691507702,5.65866,1767.2,1767.1,6.11]
[1743691507907,5.65962,1766.9,1766.8,6.11]
[1743691508109,12.19262,1766.9,1766.8,6.11]
[1743691508634,5.66091,1766.5,1766.4,6.11]
[1743691508794,12.19391,1766.5,1766.4,6.11]
[1743691509384,5.65995,1766.8,1766.4,6.11]
[1743691509385,5.65999,1766.8,1766.4,6.11]
[1743691509620,6.533,1766.7,1766.6,0.7554]
[1743691509918,12.19357,1766.7,1766.4,6.8654]
[1743691510132,6.533,1766.7,1766.4,6.8654]
[1743691510431,12.19344,1766.7,1766.4,6.8654]
[1743691510657,6.533,1766.7,1766.5,0.68654]
[1743691510800,5.66091,1766.5,1766.4,6.11]
[1743691514719,5.66091,1766.5,1766.2,6.11]
[1743691514915,5.66135,1766.4,1766.2,6.11]
[1743691515110,6.532,1766.3,1766.2,6.11]
[1743691515840,12.19355,1766.3,1766.2,6.11]
[1743691516346,6.532,1766.3,1766.2,6.11]
[1743691517042,6.87214213,1766.7,1766.3,0.7837]
[1743691517228,6.532,1766.6,1766.3,0.7837]
[1743691517429,11.32013,1766.8,1766.3,0.7837]
[1743691517632,6.532,1766.7,1766.3,6.44525]
[1743691517829,5.6606,1766.6,1766.4,0.644525]
[1743691518163,5.66107,1766.5,1766.2,6.11]
[1743691518368,12.61815104,1766.7,1766.2,6.11]
[1743691518568,6.95777104,1766.7,1766.3,0.8215]
[1743691518870,5.66069,1766.6,1766.3,0.8215]
[1743691519555,5.66094,1766.5,1766.3,0.8215]
[1743691519753,12.61818104,1766.7,1766.3,0.8215]
[1743691519937,11.32156,1766.6,1766.3,0.8215]
[1743691520142,5.6615,1766.4,1766.2,6.11]
[1743691520340,6.531,1766.3,1766.2,6.11]
[1743691521561,12.19255,1766.3,1766.2,6.11]
[1743691522169,13.54055,1766.3,1766.2,6.11]
[1743691522467,15.84286638,1766.3,1766.2,6.11]
[1743691522672,5.66283,1765.9,1765.8,6.11]
[1743691522846,5.66317,1765.8,1765.5,6.8877]
[1743691523172,6.09467404,1765.8,1765.5,6.8877]
[1743691523527,5.66379,1765.6,1765.5,6.11]
[1743691524032,9.97479,1765.6,1765.5,6.11]
[1743691524272,5.66508,1765.2,1765.1,6.16]
[1743691524475,12.19608,1765.2,1765.1,6.16]
[1743691525677,17.37812384,1765.2,1765.1,6.16]
[1743691525872,19.68241322,1765.2,1765.1,6.16]
[1743691526078,12.19608,1765.2,1765.1,6.16]
[1743691527489,16.56732384,1765.2,1765.1,6.16]
[1743691527647,16.56732384,1765.2,1763.8,50.25451384]
[1743691527648,5.66686,1764.7,1764.3,0.7881]
[1743691527852,5.66686,1764.7,1764.1,5.71853]
[1743691527853,5.66757,1764.5,1764.1,0.8381]
[1743691528282,5.66773,1764.4,1764.1,0.8381]
[1743691528493,5.66737,1764.5,1764.1,0.8381]
[1743691528671,6.531,1764.6,1764.2,5.66818]
[1743691528991,6.531,1764.6,1764.2,6.885665]
[1743691529146,6.531,1764.6,1764.2,12.553835]
[1743691529350,6.531,1764.6,1764.2,6.885655]
[1743691529589,12.19824,1764.6,1764.1,0.8381]
[1743691529893,10.76783409,1764.6,1764.2,5.66824]
[1743691530092,6.94659025,1764.6,1764.3,5.66769]
[1743691530292,0.41559025,1764.6,1764.4,5.66757]
[1743691530610,6.532,1764.5,1764.4,7.566096]
[1743691530891,4.57884384,1765.1,1764.6,5.66681]
[1743691531076,6.532,1765.0,1764.6,5.66681]
[1743691531264,6.96271653,1765.0,1764.6,5.66681]
[1743691531461,6.96271653,1765.0,1764.7,6.43042]
[1743691531795,0.43071653,1765.0,1764.7,0.7638]
[1743691531990,6.531,1764.9,1764.7,0.7638]
[1743691532175,12.19715,1764.9,1764.5,0.7634]
[1743691532378,13.01325,1764.9,1764.5,0.7634]
[1743691532583,5.66642,1764.8,1764.5,0.7634]
[1743691532878,5.66693,1764.7,1764.3,0.7634]
[1743691533050,0.41901387,1764.7,1764.3,0.7634]
[1743691533253,16.83441384,1764.9,1764.3,6.43126]
[1743691533453,5.66648,1764.8,1764.3,6.43126]
[1743691533687,5.66648,1764.8,1764.3,6.43133]
[1743691533893,5.66656,1764.8,1764.3,6.43129]
[1743691534107,5.66709,1764.6,1764.3,0.7634]
[1743691534266,5.66815,1764.3,1764.1,0.05]
[1743691534460,16.58648284,1764.5,1764.1,0.05]
[1743691534796,16.58648284,1764.5,1764.2,6.11]
[1743691535006,10.91895284,1764.5,1764.2,6.11]
[1743691535154,16.58631284,1764.5,1764.2,6.11]
[1743691535349,22.25383284,1764.5,1764.2,6.11]
[1743691535551,16.58631284,1764.5,1764.2,6.11]
[1743691536351,10.91895284,1764.5,1764.2,6.11]
[1743691536554,7.097709,1764.5,1764.2,6.11]
[1743691537465,6.82124384,1764.8,1764.2,6.11]
[1743691537669,6.531,1764.7,1764.3,12.54961]
[1743691537976,6.531,1764.7,1764.3,6.8817]
[1743691538177,6.531,1764.7,1764.3,12.54962]